bitfinex/quotes_SOLUSD_20250310
["timestamp","ask_amount","ask_price","bid_price","bid_amount"]
[1741565754456,18.64964886,126.63,126.54,39.0187687]
[1741565754615,39.0187687,126.59,126.54,39.0187687]
[1741565755245,63.9,126.63,126.57,39.0187687]
[1741565755448,102.9187687,126.63,126.57,46.9194687]
[1741565755654,102.9187687,126.63,126.58,39.0187687]
[1741565755853,72.49631756,126.64,126.58,39.0187687]
[1741565756026,39.0187687,126.61,126.55,46.9207687]
[1741565756226,39.0187687,126.63,126.57,39.0187687]
[1741565756427,18.64964886,126.62,126.57,39.0187687]
[1741565756732,39.0187687,126.61,126.56,39.0187687]
[1741565757256,18.64964886,126.59,126.55,7.902]
[1741565757440,57.66841756,126.56,126.51,39.0187687]
[1741565757646,18.64964886,126.56,126.52,39.0187687]
[1741565758149,18.64964886,126.56,126.51,46.9231687]
[1741565758360,18.64964886,126.55,126.51,46.9231687]
[1741565758724,18.64964886,126.56,126.52,39.0187687]
[1741565759458,18.64964886,126.56,126.51,46.9231687]
[1741565759826,39.0187687,126.52,126.45,27.6783]
[1741565760028,39.0187687,126.54,126.49,39.0187687]
[1741565760235,39.0187687,126.53,126.45,109.1783]
[1741565760437,57.66841756,126.54,126.45,89.4082]
[1741565760633,57.66841756,126.53,126.47,39.0187687]
[1741565760858,57.66841756,126.53,126.48,39.0187687]
[1741565761065,57.66841756,126.54,126.49,39.0187687]
[1741565761270,18.64964886,126.51,126.45,89.4082]
[1741565761455,39.0187687,126.5,126.45,89.4082]
[1741565761766,40.6270687,126.53,126.47,39.0187687]
[1741565761955,82.4,126.54,126.49,39.0187687]
[1741565762260,82.4,126.54,126.45,117.5588]
[1741565762261,57.66841756,126.55,126.5,39.0187687]
[1741565762464,63.9,126.59,126.54,39.0187687]
[1741565762756,45.6166687,126.6,126.53,20.0]
[1741565763063,57.66841756,126.58,126.52,39.0187687]
[1741565763258,39.0187687,126.56,126.5,89.88]
[1741565763430,39.0187687,126.55,126.5,47.3987687]
[1741565763629,39.0187687,126.57,126.52,39.0187687]
[1741565764161,121.4187687,126.59,126.54,39.0187687]
[1741565764327,6.5979,126.6,126.56,39.0187687]
[1741565764926,39.0187687,126.62,126.57,39.0187687]
[1741565765158,0.063,126.63,126.61,39.0187687]
[1741565765672,0.063,126.63,126.6,39.0187687]
[1741565766167,0.063,126.63,126.62,39.0187687]
[1741565767731,0.063,126.63,126.62,46.9163687]
[1741565768264,39.0187687,126.71,126.62,148.1604687]
[1741565768477,45.1780687,126.73,126.67,39.0187687]
[1741565769275,39.0187687,126.72,126.67,39.0187687]
[1741565769452,39.0187687,126.72,126.66,46.9132687]
[1741565769774,39.0187687,126.71,126.66,7.8945]
[1741565769988,45.1780687,126.73,126.67,39.0187687]
[1741565770283,39.0187687,126.75,126.7,39.0187687]
[1741565770470,39.0187687,126.73,126.66,89.3945]
[1741565770651,39.0187687,126.72,126.67,39.0187687]
[1741565771088,39.0187687,126.74,126.69,39.0187687]
[1741565771380,121.4187687,126.75,126.71,7.892]
[1741565771545,39.0187687,126.75,126.71,7.892]
[1741565771745,0.063,126.76,126.73,39.0187687]
[1741565771980,0.063,126.76,126.74,39.0187687]
[1741565772153,0.063,126.76,126.75,39.0187687]
[1741565772558,0.063,126.76,126.75,47.3787687]
[1741565773047,0.063,126.82,126.75,128.8787687]
[1741565773274,0.063,126.82,126.8,39.0187687]
[1741565773452,0.063,126.82,126.8,46.9048687]
[1741565773647,0.063,126.82,126.8,7.8861]
[1741565773854,0.063,126.82,126.8,46.9048687]
[1741565774070,0.063,126.82,126.81,39.0187687]
[1741565774274,0.063,126.82,126.81,120.5187687]
[1741565774482,18.61206344,126.9,126.81,327.30841756]
[1741565774649,18.61206344,126.9,126.86,39.0187687]
[1741565774977,39.0187687,126.87,126.81,227.1587687]
[1741565775164,39.0187687,126.87,126.81,39.0187687]
[1741565775356,46.9015687,126.86,126.8,39.0187687]
[1741565775550,39.0187687,126.84,126.79,39.0187687]
[1741565775881,39.0187687,126.81,126.76,317.0187687]
[1741565776062,39.0187687,126.8,126.76,278.0]
[1741565776251,39.0187687,126.79,126.76,8.36]
[1741565776479,39.0187687,126.8,126.74,46.9086687]
[1741565776857,39.0187687,126.81,126.75,39.0187687]
[1741565777075,6.4983,126.82,126.78,39.0187687]
[1741565777373,6.4983,126.82,126.74,7.8899]
[1741565777374,6.4983,126.82,126.79,39.0187687]
[1741565777570,413.92799,126.96,126.79,39.0187687]
[1741565777571,6.3996,126.86,126.81,39.0187687]
[1741565777872,6.4012,126.91,126.81,81.5]
[1741565778070,6.4012,126.91,126.86,39.0187687]
[1741565778369,1.7049,126.94,126.85,8.36]
[1741565778575,0.063,126.94,126.85,89.86]
[1741565779380,58.36549332,126.94,126.88,58.30249332]
[1741565779578,58.36549332,126.94,126.86,7.8827]
[1741565779579,58.36549332,126.94,126.89,58.30249332]
[1741565779758,0.063,126.94,126.9,58.30249332]
[1741565780071,0.063,126.94,126.87,58.30249332]
[1741565780263,58.30249332,126.9,126.85,139.80249332]
[1741565780459,58.30249332,126.9,126.84,66.66249332]
[1741565780760,20.0,126.89,126.82,58.30249332]
[1741565780960,58.30249332,126.87,126.81,66.66249332]
[1741565781159,58.30249332,126.85,126.81,8.36]
[1741565781359,58.30249332,126.86,126.81,8.36]
[1741565782172,58.30249332,126.85,126.81,8.36]
[1741565782364,6.4021,126.87,126.81,74.54809332]
[1741565782566,58.30249332,126.86,126.81,74.54809332]
[1741565783964,58.30249332,126.85,126.81,16.2456]
[1741565784190,58.30249332,126.83,126.81,8.36]
[1741565784367,58.30249332,126.83,126.8,188.04]
[1741565784779,58.30249332,126.82,126.77,81.5]
[1741565784982,58.30249332,126.83,126.77,156.05059332]
[1741565785162,58.30249332,126.83,126.78,58.30249332]
[1741565785683,58.30249332,126.83,126.78,7.8876]
[1741565785886,58.30249332,126.83,126.78,66.19009332]
[1741565786182,82.4,126.85,126.81,58.30249332]
[1741565786415,83.35424218,126.87,126.82,58.30249332]
[1741565786576,25.05174886,126.87,126.82,58.30249332]
[1741565787087,58.30249332,126.86,126.81,58.30249332]
[1741565787467,76.95214218,126.85,126.79,58.30249332]
[1741565787667,76.95214218,126.85,126.8,58.30249332]
[1741565787875,58.30249332,126.85,126.8,58.30249332]
[1741565788067,58.30249332,126.86,126.81,58.30249332]
[1741565788262,25.05174886,126.87,126.82,58.30249332]
[1741565788468,25.05174886,126.87,126.79,27.6046]
[1741565788682,6.4021,126.87,126.83,58.30249332]
[1741565788886,1.5055,126.9,126.85,58.30249332]
[1741565789181,76.95214218,126.89,126.83,58.30249332]
[1741565789374,58.30249332,126.87,126.82,66.66249332]
[1741565789887,18.64964886,126.86,126.79,101.2176]
[1741565790062,58.30249332,126.84,126.8,7.8864]
[1741565790473,58.30249332,126.85,126.8,66.18889332]
[1741565791089,140.70249332,126.87,126.82,58.30249332]
[1741565791290,140.70249332,126.87,126.81,58.30249332]
[1741565791488,58.30249332,126.85,126.8,58.30249332]
[1741565791790,58.30249332,126.85,126.8,7.8859]
[1741565791965,58.30249332,126.86,126.8,7.8859]
[1741565792168,140.70249332,126.87,126.81,58.30249332]
[1741565792375,140.70249332,126.87,126.82,58.30249332]
[1741565792770,82.4,126.87,126.82,58.30249332]
[1741565792971,58.30249332,126.87,126.81,58.30249332]
[1741565793371,58.30249332,126.86,126.81,58.30249332]
[1741565793573,58.30249332,126.86,126.8,66.18839332]
[1741565794095,58.30249332,126.86,126.81,58.30249332]
[1741565794294,66.18519332,126.86,126.81,58.30249332]
[1741565794693,66.18519332,126.86,126.8,66.18839332]
[1741565795194,58.30249332,126.85,126.8,7.8859]
[1741565795366,66.18519332,126.86,126.8,66.18839332]
[1741565795993,58.30249332,126.85,126.8,66.18839332]
[1741565796190,66.18589332,126.85,126.79,89.86]
[1741565796393,58.30249332,126.83,126.79,8.36]
[1741565796591,101.04964886,126.82,126.76,187.88]
[1741565796798,58.30249332,126.8,126.76,187.88]
[1741565797177,140.70249332,126.82,126.77,58.30249332]
[1741565797377,140.70249332,126.82,126.76,246.18249332]
[1741565797378,58.30249332,126.81,126.76,246.18249332]
[1741565797584,58.30249332,126.81,126.76,187.88]
[1741565797798,58.30249332,126.81,126.76,195.7688]
[1741565797973,58.30249332,126.81,126.76,187.88]
[1741565798297,58.30249332,126.8,126.76,187.88]
[1741565798590,7.8858,126.81,126.76,187.88]
[1741565798791,58.30249332,126.8,126.76,187.88]
[1741565799097,58.30249332,126.81,126.76,187.88]
[1741565799278,58.30249332,126.81,126.76,254.07129332]
[1741565799680,58.30249332,126.8,126.76,195.7688]
[1741565799893,76.95214218,126.81,126.76,195.7688]
[1741565800100,58.30249332,126.8,126.76,187.88]
[1741565800475,66.18889332,126.8,126.76,187.88]
[1741565800793,58.30249332,126.8,126.76,187.88]
[1741565800979,58.30249332,126.78,126.73,66.19319332]
[1741565801372,159.35214218,126.79,126.73,66.19319332]
[1741565801573,58.30249332,126.77,126.72,66.19369332]
[1741565801792,76.95214218,126.76,126.7,58.30249332]
[1741565802000,58.30249332,126.75,126.7,58.30249332]
[1741565802295,38.98196378,126.75,126.7,38.98196378]
[1741565802482,57.63161264,126.76,126.71,46.87396378]
[1741565803198,38.98196378,126.74,126.69,7.8932]
[1741565803496,38.98196378,126.73,126.69,7.8932]
[1741565803896,57.63161264,126.74,126.69,7.8932]
[1741565804098,38.98196378,126.73,126.69,7.8932]
[1741565804399,18.64964886,126.74,126.69,38.98196378]
[1741565804982,57.63161264,126.74,126.69,38.98196378]
[1741565805383,18.64964886,126.74,126.69,38.98196378]
[1741565805698,57.63161264,126.74,126.69,38.98196378]
[1741565805999,57.63161264,126.74,126.68,254.51026378]
[1741565806199,57.63161264,126.74,126.68,215.5283]
[1741565806403,57.63161264,126.74,126.68,254.51026378]
[1741565807100,121.38196378,126.75,126.68,215.5283]
[1741565807400,121.38196378,126.75,126.71,38.98196378]
[1741565807401,82.4,126.75,126.71,38.98196378]
[1741565808780,82.4,126.75,126.72,27.6199]
[1741565808981,38.98196378,126.76,126.72,27.6199]
[1741565809198,38.98196378,126.76,126.72,7.8914]
[1741565809737,38.98196378,126.74,126.71,7.892]
[1741565809882,38.98196378,126.75,126.71,7.892]
[1741565810308,18.64964886,126.76,126.71,66.60396378]
[1741565810505,57.63161264,126.76,126.71,66.60396378]
[1741565810713,45.29106378,126.77,126.71,66.60396378]
[1741565810888,38.98196378,126.76,126.71,66.60396378]
[1741565811088,45.29106378,126.77,126.71,66.60396378]
[1741565811390,38.98196378,126.76,126.71,66.60396378]
[1741565811599,38.98196378,126.75,126.71,7.892]
[1741565811830,38.98196378,126.74,126.71,7.892]
[1741565811992,38.98196378,126.75,126.71,7.892]
[1741565812614,38.98196378,126.73,126.69,7.8932]
[1741565812812,38.98196378,126.74,126.69,7.8932]
[1741565813198,38.98196378,126.74,126.68,226.88196378]
[1741565813507,38.98196378,126.71,126.66,38.98196378]
[1741565813703,38.98196378,126.7,126.65,8.34]
[1741565814493,38.98196378,126.69,126.64,46.87826378]
[1741565814691,6.658,126.71,126.66,38.98196378]
[1741565814903,6.658,126.71,126.67,38.98196378]
[1741565815106,141.65961264,126.73,126.67,38.98196378]
[1741565815404,82.4,126.73,126.69,38.98196378]
[1741565815589,45.38186378,126.74,126.69,38.98196378]
[1741565815790,45.38186378,126.74,126.68,38.98196378]
[1741565816189,38.98196378,126.73,126.67,47.34196378]
[1741565816405,45.38186378,126.74,126.68,38.98196378]
[1741565816609,38.98196378,126.7,126.67,8.36]
[1741565816910,38.98196378,126.71,126.67,8.36]
[1741565817499,38.98196378,126.71,126.66,7.895]
[1741565817500,38.98196378,126.7,126.66,7.895]
[1741565817713,38.98196378,126.7,126.65,7.8956]
[1741565818408,38.98196378,126.69,126.65,7.8956]
[1741565819495,38.98196378,126.67,126.63,7.9264]
[1741565819814,38.98196378,126.68,126.63,66.65086378]
[1741565819996,38.98196378,126.68,126.63,7.9264]
[1741565820198,82.4,126.71,126.65,38.98196378]
[1741565820394,82.4,126.71,126.63,7.9264]
[1741565820395,82.4,126.71,126.66,38.98196378]
[1741565820601,38.98196378,126.7,126.64,38.98196378]
[1741565820801,38.98196378,126.7,126.65,38.98196378]
[1741565820993,6.3999,126.74,126.69,38.98196378]
[1741565821196,82.4,126.75,126.71,38.98196378]
[1741565821608,6.4363,126.77,126.66,147.49161264]
[1741565821793,6.4363,126.77,126.68,18.64964886]
[1741565821993,38.98196378,126.79,126.74,38.98196378]
[1741565822317,40.57426378,126.8,126.75,38.98196378]
[1741565822513,38.98196378,126.79,126.74,38.98196378]
[1741565822719,38.98196378,126.79,126.75,7.8895]
[1741565822894,38.98196378,126.79,126.74,46.87186378]
[1741565823098,38.98196378,126.79,126.74,7.8899]
[1741565823492,6.5348,126.81,126.76,38.98196378]
[1741565823701,0.063,126.82,126.77,38.98196378]
[1741565823907,39.04496378,126.82,126.76,38.98196378]
[1741565824105,38.98196378,126.81,126.76,38.98196378]
[1741565824419,38.98196378,126.78,126.74,89.3899]
[1741565824741,58.98196378,126.79,126.74,46.87186378]
[1741565824917,39.04496378,126.82,126.76,38.98196378]
[1741565825215,0.063,126.82,126.8,38.98196378]
[1741565825601,0.063,126.82,126.81,38.98196378]
[1741565825813,0.063,126.82,126.81,120.48196378]
[1741565826921,0.063,126.82,126.81,128.36776378]
[1741565827120,88.5389,126.9,126.82,18.64964886]
[1741565827423,6.1389,126.9,126.86,38.98196378]
[1741565827626,38.98196378,126.92,126.87,38.98196378]
[1741565827811,57.68802722,126.93,126.88,38.98196378]
[1741565828024,18.70606344,126.93,126.89,38.98196378]
[1741565828199,18.70606344,126.93,126.9,38.98196378]
[1741565828514,12.32396344,126.93,126.92,38.98196378]
[1741565828735,0.063,126.94,126.9,38.98196378]
[1741565828920,38.98196378,126.93,126.88,47.32196378]
[1741565829111,38.98196378,126.93,126.88,8.34]
[1741565829594,38.98196378,126.93,126.88,47.32196378]
[1741565830107,38.98196378,126.93,126.87,7.8819]
[1741565830108,18.64964886,126.92,126.82,1.6094]
[1741565830295,58.34028406,126.9,126.84,58.34028406]
[1741565830501,0.063,126.94,126.84,81.5]
[1741565830707,18.71264886,126.94,126.9,58.34028406]
[1741565830906,77.05293292,126.94,126.86,8.34]
[1741565831205,58.34028406,126.93,126.88,58.34028406]
[1741565831407,26.59034886,126.94,126.87,7.882]
[1741565831408,58.40328406,126.94,126.89,58.34028406]
[1741565831609,0.063,126.94,126.91,58.34028406]
[1741565832011,0.063,126.94,126.9,58.34028406]
[1741565832211,58.40328406,126.94,126.88,139.84028406]
[1741565832411,58.34028406,126.92,126.88,81.5]
[1741565832606,58.34028406,126.91,126.88,81.5]
[1741565832809,58.34028406,126.91,126.86,74.56278406]
[1741565833017,58.34028406,126.89,126.84,81.5]
[1741565833227,58.34028406,126.89,126.83,66.68028406]
[1741565833427,58.34028406,126.87,126.83,8.34]
[1741565833620,58.34028406,126.86,126.81,254.22598406]
[1741565833803,58.34028406,126.85,126.81,195.8857]
[1741565834140,58.34028406,126.83,126.79,81.5]
[1741565834427,58.34028406,126.82,126.77,7.8882]
[1741565834612,58.34028406,126.82,126.77,66.22848406]
[1741565834811,1.5864,126.84,126.78,58.34028406]
[1741565834812,59.92668406,126.84,126.78,58.34028406]
[1741565835009,65.4864,126.87,126.81,58.34028406]
[1741565835220,58.34028406,126.85,126.8,58.34028406]
[1741565835611,58.34028406,126.85,126.79,7.887]
[1741565835810,59.92668406,126.87,126.82,58.34028406]
[1741565836009,82.4,126.88,126.83,58.34028406]
[1741565836221,76.98993292,126.89,126.83,58.34028406]
[1741565836419,76.98993292,126.89,126.84,58.34028406]
[1741565836723,147.15918406,126.9,126.85,58.34028406]
[1741565836930,6.4189,126.9,126.87,58.34028406]
[1741565837115,147.23278406,126.94,126.89,58.34028406]
[1741565837311,58.34028406,126.93,126.88,66.22168406]
[1741565837623,58.34028406,126.91,126.86,97.7225]
[1741565837829,58.34028406,126.9,126.86,8.34]
[1741565838152,20.0,126.9,126.86,74.56268406]
[1741565838334,58.34028406,126.92,126.87,58.34028406]
[1741565838639,58.34028406,126.9,126.86,16.2224]
[1741565838835,58.34028406,126.91,126.86,16.2224]
[1741565839036,0.063,126.88,126.86,16.2224]
[1741565839216,0.063,126.88,126.87,58.34028406]
[1741565839415,0.063,126.88,126.86,74.56268406]
[1741565840039,0.063,126.88,126.85,7.8831]
[1741565840215,58.40328406,126.88,126.84,89.3838]
[1741565840631,58.34028406,126.87,126.83,195.7643]
[1741565840849,58.34028406,126.87,126.83,187.88]
[1741565841203,58.34028406,126.87,126.82,66.22518406]
[1741565841407,0.063,126.88,126.83,58.34028406]
[1741565841939,58.40328406,126.88,126.83,58.34028406]
[1741565842110,0.063,126.88,126.83,58.34028406]
[1741565842314,20.0,126.87,126.82,66.22518406]
[1741565842517,78.34028406,126.87,126.82,66.22518406]
[1741565842717,20.0,126.87,126.82,27.5978]
[1741565842917,20.0,126.87,126.83,58.34028406]
[1741565843216,58.34028406,126.86,126.81,66.22578406]
[1741565843424,64.89298406,126.86,126.81,7.8855]
[1741565843633,58.34028406,126.85,126.8,89.3862]
[1741565843822,58.34028406,126.85,126.8,66.22648406]
[1741565844011,6.5527,126.86,126.82,58.34028406]
[1741565844212,6.5527,126.86,126.8,27.6022]
[1741565844425,64.89298406,126.86,126.8,85.94248406]
[1741565844642,58.34028406,126.84,126.8,7.8862]
[1741565845540,25.20234886,126.86,126.8,7.8862]
[1741565845840,58.34028406,126.85,126.8,66.22648406]
[1741565847735,18.64964886,126.84,126.79,58.34028406]
[1741565847938,58.34028406,126.82,126.77,7.8883]
[1741565848125,58.34028406,126.81,126.77,7.8883]
[1741565848545,96.98993292,126.8,126.74,139.84028406]
[1741565848746,58.34028406,126.79,126.74,66.23018406]
[1741565848943,58.34028406,126.8,126.75,58.34028406]
[1741565849552,58.34028406,126.79,126.74,66.23018406]
[1741565849777,58.34028406,126.78,126.74,7.8899]
[1741565851049,6.5185,126.79,126.74,66.23018406]
[1741565851362,58.34028406,126.78,126.73,195.7706]
[1741565851569,58.34028406,126.76,126.73,187.88]
[1741565851863,58.34028406,126.76,126.72,7.891]
[1741565852064,58.34028406,126.77,126.72,7.891]
[1741565852236,58.34028406,126.77,126.72,66.23128406]
[1741565852765,58.34028406,126.78,126.73,58.34028406]
[1741565852943,58.34028406,126.78,126.72,27.6195]
[1741565853276,58.34028406,126.76,126.72,7.891]
[1741565853552,58.34028406,126.76,126.69,81.53]
[1741565853757,58.34028406,126.75,126.7,66.23288406]
[1741565853970,58.34028406,126.76,126.71,58.34028406]
[1741565854555,140.74028406,126.77,126.71,58.34028406]
[1741565855143,140.74028406,126.77,126.72,66.23168406]
[1741565855354,58.34028406,126.76,126.72,7.8914]
[1741565855533,58.34028406,126.76,126.71,66.23208406]
[1741565856135,58.34028406,126.76,126.71,7.8918]
[1741565856336,57.62717494,126.75,126.7,7.8925]
[1741565856536,38.97752608,126.74,126.7,7.8925]
[1741565857150,38.97752608,126.72,126.69,0.03]
[1741565857495,38.97752608,126.71,126.69,0.03]
[1741565857658,38.97752608,126.71,126.69,7.9232]
[1741565857850,45.43542608,126.72,126.69,7.9232]
[1741565858249,82.4,126.73,126.69,66.4062385]
[1741565858749,140.8830385,126.73,126.69,7.9232]
[1741565859159,58.4830385,126.71,126.69,0.03]
[1741565859464,82.4,126.73,126.69,0.03]
[1741565859843,58.4830385,126.72,126.69,0.03]
[1741565860256,90.2908,126.73,126.69,0.03]
[1741565860441,77.13268736,126.72,126.69,0.03]
[1741565861063,85.02528736,126.7,126.69,0.03]
[1741565861964,91.29218736,126.7,126.69,0.03]
[1741565865367,18.64964886,126.69,126.67,0.03]
[1741565865562,77.13268736,126.68,126.67,0.03]
[1741565866463,18.64964886,126.68,126.67,0.03]
[1741565866967,77.13268736,126.68,126.67,0.03]
[1741565868169,85.02658736,126.68,126.67,0.03]
[1741565869571,148.92658736,126.68,126.67,0.03]
[1741565870851,20.0,126.64,126.63,0.03]
[1741565871073,78.4830385,126.64,126.63,0.03]
[1741565871264,20.0,126.64,126.63,0.03]
[1741565871653,38.64964886,126.64,126.63,0.03]
[1741565871857,20.0,126.64,126.63,0.03]
[1741565872664,18.64964886,126.66,126.63,0.03]
[1741565874350,58.4830385,126.67,126.63,0.03]
[1741565874679,18.64964886,126.67,126.63,0.03]
[1741565874887,140.8830385,126.66,126.63,0.03]
[1741565875086,82.4,126.66,126.63,0.03]
[1741565877072,231.32678736,126.68,126.63,0.03]
[1741565877254,26.60624886,126.69,126.64,58.4830385]
[1741565877454,85.08928736,126.69,126.63,58.5130385]
[1741565878173,77.19568736,126.69,126.64,58.4830385]
[1741565878360,18.71264886,126.69,126.64,58.4830385]
[1741565878559,18.71264886,126.69,126.65,7.8957]
[1741565878755,85.08898736,126.69,126.64,66.3791385]
[1741565879060,58.4830385,126.68,126.63,58.5130385]
[1741565879252,58.4830385,126.68,126.63,66.4098385]
[1741565879457,58.4830385,126.68,126.63,7.9268]
[1741565879656,85.08898736,126.69,126.63,66.4098385]
[1741565879856,77.19568736,126.69,126.64,58.4830385]
[1741565880356,18.71264886,126.69,126.64,39.01892137]
[1741565880557,0.063,126.69,126.66,39.01892137]
[1741565880752,0.063,126.69,126.67,39.01892137]
[1741565881075,0.063,126.69,126.65,109.1351]
[1741565881383,46.97522137,126.69,126.65,81.5]
[1741565881756,39.08192137,126.69,126.65,81.5]
[1741565882176,0.063,126.69,126.65,120.51892137]
[1741565882380,0.063,126.69,126.67,39.01892137]
[1741565882683,0.063,126.69,126.66,7.8951]
[1741565883063,0.063,126.69,126.66,39.01892137]
[1741565883582,0.063,126.69,126.65,128.41442137]
[1741565883889,39.08192137,126.69,126.65,81.5]
[1741565884065,0.063,126.69,126.66,39.01892137]
[1741565884385,0.063,126.69,126.65,128.41452137]
[1741565884567,39.08192137,126.69,126.65,81.5]
[1741565884758,39.01892137,126.68,126.65,81.5]
[1741565884965,39.08192137,126.69,126.65,89.3956]
[1741565885179,0.063,126.69,126.65,89.3956]
[1741565885380,0.063,126.69,126.65,128.41452137]
[1741565885578,0.063,126.69,126.66,39.01892137]
[1741565885973,0.063,126.69,126.65,89.3956]
[1741565886173,82.4,126.68,126.63,0.03]
[1741565886374,39.01892137,126.66,126.63,0.03]
[1741565886581,46.91412137,126.66,126.63,0.03]
[1741565886779,121.41892137,126.67,126.63,0.03]
[1741565886979,57.66857023,126.66,126.63,0.03]
[1741565887373,121.41892137,126.67,126.63,0.03]
[1741565887574,39.01892137,126.65,126.63,0.03]
[1741565887774,39.01892137,126.64,126.63,0.03]
[1741565888171,57.66857023,126.64,126.63,0.03]
[1741565888569,65.56487023,126.64,126.63,0.03]
[1741565888771,57.66857023,126.64,126.63,0.03]
[1741565889094,90.74,126.65,126.63,0.03]
[1741565889474,45.36172137,126.67,126.63,0.03]
[1741565890280,57.66857023,126.66,126.63,0.03]
[1741565890787,6.3428,126.67,126.63,0.03]
[1741565891181,140.06857023,126.68,126.63,39.04892137]
[1741565891374,82.4,126.68,126.64,39.01892137]
[1741565891568,0.063,126.69,126.66,39.01892137]
[1741565891766,0.063,126.69,126.68,39.01892137]
[1741565891987,0.063,126.69,126.68,47.35892137]
[1741565892170,0.063,126.69,126.68,53.74332137]
[1741565892609,0.063,126.69,126.66,308.67892137]
[1741565892610,0.063,126.69,126.67,7.8945]
[1741565892888,0.063,126.69,126.68,39.01892137]
[1741565893480,0.063,126.69,126.66,269.66]
[1741565893675,0.063,126.69,126.66,188.16]
[1741565894085,39.08192137,126.69,126.64,47.35892137]
[1741565894275,39.01892137,126.67,126.63,0.03]
[1741565894771,57.66857023,126.68,126.63,39.04892137]
[1741565895389,39.01892137,126.68,126.63,39.04892137]
[1741565895590,88.6412,126.69,126.64,39.01892137]
[1741565895794,82.463,126.69,126.66,39.01892137]
[1741565895994,0.063,126.69,126.68,39.01892137]
[1741565896304,0.063,126.69,126.66,128.85892137]
[1741565896494,0.063,126.69,126.68,39.01892137]
[1741565896978,0.063,126.69,126.68,46.91282137]
[1741565897590,0.063,126.69,126.68,128.41282137]
[1741565897591,0.0001,126.69,126.68,128.41282137]
[1741565897777,0.0001,126.69,126.68,129.95402137]
[1741565898187,0.0001,126.69,126.68,90.9351]
[1741565898492,0.0001,126.69,126.68,129.95402137]
[1741565899017,0.0001,126.69,126.68,128.41282137]
[1741565900673,0.0001,126.69,126.68,120.51892137]
[1741565900995,0.0001,126.69,126.67,46.91332137]
[1741565901177,0.0001,126.69,126.68,39.01892137]
[1741565901381,0.0001,126.69,126.68,120.51892137]
[1741565902277,0.0001,126.69,126.68,128.41282137]
[1741565904990,0.0001,126.69,126.68,81.5]
[1741565905505,0.0001,126.69,126.68,89.3939]
[1741565905687,0.0001,126.69,126.68,81.5]
[1741565905888,0.0001,126.69,126.68,89.3939]
[1741565906288,0.0001,126.69,126.68,128.41282137]
[1741565907293,0.0001,126.69,126.68,147.06247023]
[1741565907501,0.0001,126.69,126.68,153.61767023]
[1741565907694,0.0001,126.69,126.68,114.59874886]
[1741565907894,0.0001,126.69,126.68,153.61767023]
[1741565908111,0.0001,126.69,126.68,128.41282137]
[1741565908325,0.0001,126.69,126.68,46.91282137]
[1741565909302,0.0001,126.69,126.67,7.8943]
[1741565909506,0.0001,126.69,126.66,195.9949]
[1741565909684,39.01902137,126.69,126.64,7.8963]
[1741565909888,0.0001,126.69,126.66,39.01892137]
[1741565910320,0.0001,126.69,126.67,39.01892137]
[1741565910620,0.0001,126.69,126.65,39.01892137]
[1741565911121,0.0001,126.69,126.68,39.01892137]
[1741565911833,0.0001,126.69,126.68,39.04892137]
[1741565912000,0.0001,126.69,126.68,0.03]
[1741565912938,57.66867023,126.69,126.68,0.03]
[1741565913151,18.64974886,126.69,126.68,0.03]
[1741565913505,57.66867023,126.69,126.68,0.03]
[1741565913826,59.18767023,126.69,126.68,0.03]
[1741565914206,20.16874886,126.69,126.68,0.03]
[1741565914405,59.18767023,126.69,126.68,0.03]
[1741565914600,67.08087023,126.69,126.68,0.03]
[1741565914902,59.18767023,126.69,126.68,0.03]
[1741565915642,20.16874886,126.69,126.68,0.03]
[1741565915811,0.0001,126.69,126.68,0.03]
[1741565916643,0.0001,126.69,126.68,7.9239]
[1741565916847,0.0001,126.69,126.68,46.94282137]
[1741565917623,0.0001,126.69,126.68,148.27602734]
[1741565917820,0.0001,126.69,126.68,147.09247023]
[1741565918014,12.32396344,126.76,126.7,18.64964886]
[1741565918213,12.32396344,126.76,126.75,39.01892137]
[1741565918519,45.15252137,126.8,126.75,39.01892137]
[1741565918704,6.1336,126.8,126.77,39.01892137]
[1741565919306,6.1336,126.8,126.76,46.90782137]
[1741565919506,6.1336,126.8,126.76,7.8889]